Cogmind - Beta 11.1 *** ADVENTURER MODE // 2022.07.03 @ 17:36:28 Player: Megumi Haze Result: Self-destructed Performance ------------- Evolutions (1) 500 Regions Visited (2) 400 Robots Destroyed (23) 115 Value Destroyed (596) 596 Prototype IDs (6) 120 Alien Tech Used (0) 0 Bonus (0) 0 TOTAL SCORE: 1731 Bonus ------- None Cogmind --------- Core Integrity 312/400 Matter 300/300 Energy 100/100 System Corruption 1% Temperature Cool (0) Movement Treading (160) Location -9/Materials Parts ------- > --- POWER (1) -------- (None) > --- PROPULSION (4) --- Light Treads Light Treads > --- UTILITY (2) ------ Cooling System Large Storage Unit > --- WEAPON (2) ------- Medium Laser Beam Cannon > --- INVENTORY (15) --- Ion Engine Light Treads Aluminum Leg Aluminum Leg Heat Sink Improved Heat Sink Huge Storage Unit High-capacity Matter Pod (200) Sensor Array Seismic Detector ECM Suite High-powered Tractor Beam Field Recycling Unit (0) Peak State ------------ > --- POWER ------------ Ion Engine > --- PROPULSION ------- Light Treads Light Treads Light Treads > --- UTILITY ---------- Improved Heat Sink Large Storage Unit > --- WEAPON ----------- Medium Laser Beam Cannon > --- INVENTORY -------- Ion Engine Heat Sink Huge Storage Unit High-capacity Matter Pod Sensor Array Seismic Detector ECM Suite High-powered Tractor Beam Field Recycling Unit [Rating: 11] Favorites ----------- Power Ion Engine Engine Ion Engine Propulsion Light Treads Treads Light Treads Hover Unit Hover Unit Utility High-powered Tractor Beam Device High-powered Tractor Beam Storage Small Storage Unit Weapon Medium Laser Energy Gun Medium Laser Energy Cannon Beam Cannon Build | -11 -10 -9 ------- Run | Scr Mat Mat Slots Evolved 2 | . . 2 Power . | . . . Propulsion 2 | . . 2 Utility . | . . . Weapon . | . . . Parts Attached 17 | 6 7 4 Power 1 | 1 . . Engine 1 | 1 . . Core . | . . . Reactor . | . . . Propulsion 5 | 2 2 1 Treads 4 | 2 1 1 Leg . | . . . Wheel . | . . . Hover 1 | . 1 . Flight . | . . . Utility 8 | 1 5 2 Device 4 | . 2 2 Storage 4 | 1 3 . Processor . | . . . Hackware . | . . . Protection . | . . . Artifact . | . . . Weapon 3 | 2 . 1 Energy Gun 2 | 2 . . Energy Cannon 1 | . . 1 Ballistic Gun . | . . . Ballistic Cannon . | . . . Launcher . | . . . Special Weapon . | . . . Impact Weapon . | . . . Slashing Weapon . | . . . Piercing Weapon . | . . . Special Melee Weapon . | . . . Unidentified Prototypes . | . . . Parts Lost 3 | . . 3 Power 1 | . . 1 Propulsion 1 | . . 1 Utility . | . . . Weapon 1 | . . 1 Highest Loss Streak 2 | . . 2 To Critical Strikes . | . . . Average Slot Usage (%) 94 | . 98 84 Engine 13 | . 14 11 Treads 28 | . 28 29 Device 12 | . 12 11 Storage 13 | . 14 11 Energy Gun 24 | . 28 14 Energy Cannon 1 | . . 7 Naked Turns . | . . . Heaviest Build 32 | 14 30 32 Greatest Support 60 | 40 40 60 Greatest Overweight (x) . | . . . Average Overweight (x) . | . . . Largest Inventory Capacity 25 | 8 25 15 Average Capacity 10 | 7 10 15 Most Carried 13 | 2 9 13 Average Carried 5 | . 5 10 Final Capacity 15 | 8 15 15 Final Carried 13 | . 5 13 Class Distribution -------------------- 100% | Mutant Dominant Class ---------------- Mutant | -10/Materials Mutant | -9/Materials Resources | -11 -10 -9 ----------- Run | Scr Mat Mat Matter Collected 566 | 222 271 73 Remotely 312 | . 249 63 Salvage Created 766 | . 271 495 Parts 56 | . 23 33 Haulers Intercepted . | . . . Recyclers Shooed . | . . . Parts Field Recycled . | . . . Retrieved Matter . | . . . Parts Self-Destructed . | . . . Prevented . | . . . Kills | -11 -10 -9 ------- Run | Scr Mat Mat Combat Hostiles Destroyed 18 | . 8 10 Guns 14 | . 8 6 Cannons 4 | . . 4 Classes Destroyed 4 | . 3 1 Watcher 5 | . 3 2 Swarmer 6 | . 6 . Grunt 10 | . 2 8 Sentry 2 | . . 2 Best Kill Streak 5 | . 3 5 Combat Bots Only 3 | . 3 3 Max Kills in Single Turn 2 | . 2 1 Gunslinging 1 | . 1 . Exploded . | . . . Melee . | . . . Uniques/NPCs Destroyed . | . . . Combat | -11 -10 -9 -------- Run | Scr Mat Mat Damage Taken 678 | . 83 595 Core 113 | . 25 88 Absorbed by Shields . | . . . Core Remaining (%) 95 | 100 90 . Volleys Fired 57 | . 24 33 Largest 2 | . 2 2 Hottest 110 | . 90 110 Shots Fired 80 | . 35 45 Gun 68 | . 35 33 Cannon 12 | . . 12 Launcher . | . . . Special . | . . . Kinetic . | . . . Thermal 35 | . 11 24 Explosive . | . . . Electromagnetic 45 | . 24 21 Robot Hit Streak 18 | . 9 18 Robot Miss Streak 1 | . 1 1 Penetration Max . | . . . Secondary Targets 1 | . 1 . Max Gunslinging Chain 1 | . 1 . Shots Hit Robots 68 | . 28 40 Core Hits 33 | . 14 19 Critical Kills . | . . . Critical Parts Destroyed . | . . . Critical Strikes 5 | . 1 4 Burn 5 | . 1 4 Melee Attacks . | . . . Impact . | . . . Slashing . | . . . Piercing . | . . . Sneak Attacks . | . . . Combat Hostiles . | . . . Follow-up Attacks . | . . . Damage Inflicted 1037 | . 424 613 Guns 842 | . 424 418 Cannons 195 | . . 195 Explosions . | . . . Melee . | . . . Ramming . | . . . Kinetic . | . . . Thermal 436 | . 112 324 Explosive . | . . . Electromagnetic 601 | . 312 289 Impact . | . . . Slashing . | . . . Piercing . | . . . Highest Corruption 1 | . 1 1 Average Corruption 1 | . 1 1 Corruption Purged . | . . . Corruption Blocked . | . . . Effects 2 | . 1 1 Message Errors 1 | . 1 . Matter Fused 1 | . . 1 Overload Shots . | . . . Overflow Damage 14 | . . 14 Projectiles 14 | . . 14 Explosions . | . . . Melee . | . . . Knockbacks . | . . . Impact . | . . . Kinetic . | . . . Secondary . | . . . Self-Inflicted Damage . | . . . Shots . | . . . Rammed . | . . . Targets Rammed . | . . . Kicked . | . . . Crushed . | . . . Highest Temperature 244 | . 244 181 Average Temperature 75 | . 107 50 Received Heat Transfer 444 | . 24 420 Effects 2 | . 2 . Interference 2 | . 2 . Siege Activations . | . . . Robots Corrupted . | . . . Combat Hostiles . | . . . Parts Fried 1 | . . 1 Impact Corruptions . | . . . Robots Melted . | . . . Combat Hostiles . | . . . Parts Melted 2 | . 1 1 Heat Transferred 1480 | . 407 1073 Parts Sabotaged . | . . . Parts Stolen . | . . . Parts Stripped . | . . . Power Chain Reactions . | . . . Missiles Intercepted . | . . . Alert | -11 -10 -9 ------- Run | Scr Mat Mat Peak Influence 254 | . 183 254 Initial . | . . . Average 55 | . 49 124 Maximum Alert Level 1 | . . 1 Low Security (%) 91 | 100 100 59 Level 1 8 | . . 40 Level 2 . | . . . Level 3 . | . . . Level 4 . | . . . Level 5 . | . . . High Security . | . . . Max Security . | . . . Squads Dispatched 2 | . . 2 Investigation 1 | . . 1 Extermination . | . . . Reinforcement 1 | . . 1 Assault . | . . . Garrison . | . . . Intercept . | . . . Searches Triggered . | . . . Construction Impeded . | . . . Haulers Reinforced . | . . . Active Scanning Responses . | . . . Cargo Convoy Interrupts . | . . . Stealth | -11 -10 -9 --------- Run | Scr Mat Mat Distress Signals 4 | . 1 3 Communications Jammed . | . . . Distress Signals . | . . . Times Spotted 30 | . 13 17 Peak Tracking Total 5 | . 4 5 Tactical Retreats . | . . . Traps | -11 -10 -9 ------- Run | Scr Mat Mat Traps Triggered 3 | . 1 2 Indirectly . | . . . Trap Hack Attempts . | . . . Triggered . | . . . Disarmed . | . . . Reprogrammed . | . . . Reused . | . . . Traps Extracted . | . . . Installed . | . . . Triggered . | . . . Machines | -11 -10 -9 ---------- Run | Scr Mat Mat Machines Disabled . | . . . Max in Single Turn . | . . . Machines Sabotaged . | . . . Garrisons Compromised . | . . . Overloaded Fab Kills . | . . . Hacking | -11 -10 -9 --------- Run | Scr Mat Mat Machines Accessed 10 | . 8 2 Terminals 10 | . 8 2 Fabricators . | . . . Repair Stations . | . . . Recycling Units . | . . . Scanalyzers . | . . . Garrison Access . | . . . Total Hacks 27 | . 23 4 Successful 18 | . 16 2 Failed 9 | . 7 2 Catastrophic . | . . . Database Lockouts . | . . . Manual 8 | . 5 3 Terminals 27 | . 23 4 Fabricators . | . . . Repair Stations . | . . . Recycling Units . | . . . Scanalyzers . | . . . Garrison Access . | . . . Terminal Hacks 17 | . 16 1 Record 4 | . 4 . Robot Analysis 1 | . 1 . Prototype ID Bank 4 | . 3 1 Level Access Points 1 | . 1 . Branch Access Points 1 | . 1 . Emergency Access Points 1 | . 1 . Locate Traps 1 | . 1 . Zone Layout 4 | . 4 . Fabricator Hacks . | . . . Repair Station Hacks . | . . . Recycling Unit Hacks . | . . . Scanalyzer . | . . . Garrison Access Hacks . | . . . Unauthorized Hacks 1 | . . 1 Terminals 1 | . . 1 Track 1 | . . 1 Fabricators . | . . . Repair Stations . | . . . Recycling Units . | . . . Scanalyzers . | . . . Garrison Access . | . . . Data Cores Recovered . | . . . Used . | . . . Hacking Detections 9 | . 7 2 Full Trace Events 1 | . . 1 Feedback Events . | . . . Feedback Blocked . | . . . Robot Schematics Acquired . | . . . Robots Built . | . . . Authchips . | . . . Time . | . . . Total Robot Build Rating . | . . . Part Schematics Acquired . | . . . Parts Built . | . . . Authchips . | . . . Time . | . . . Total Part Build Rating . | . . . Parts Repaired . | . . . Time . | . . . Parts Recycled . | . . . Recycled Matter . | . . . Retrieved Matter . | . . . Retrieved Components . | . . . Parts Scanalyzed . | . . . Part Schematics Acquired . | . . . Parts Damaged . | . . . Bothacking | -11 -10 -9 ------------ Run | Scr Mat Mat Used RIF Installer . | . . . Robots Hacked . | . . . Non-combat . | . . . Combat . | . . . Robot Hacks Applied . | . . . Relay Couplers Released . | . . . Fabnet Peak Effective % . | . . . Robots Rewired . | . . . Allies Hacked . | . . . Hacks Repelled . | . . . Allies | -11 -10 -9 -------- Run | Scr Mat Mat Total Allies . | . . . Largest Group . | . . . Highest-Rated Group . | . . . Highest-Rated Ally . | . . . Total Orders . | . . . Ally Attacks . | . . . Total Damage . | . . . Kills . | . . . Allies Corrupted . | . . . Allies Melted . | . . . Intel | -11 -10 -9 ------- Run | Scr Mat Mat Robot Analysis Total 1 | . 1 . Derelict Logs Recovered . | . . . Drone Launches . | . . . Drone Recoveries . | . . . Exploration | -11 -10 -9 ------------- Run | Scr Mat Mat Turns Passed 2313 | 492 1312 509 Spaces Moved 1071 | 73 761 237 Core 4 | 4 . . Treads 1067 | 69 761 237 Legs . | . . . Wheels . | . . . Hover . | . . . Flight . | . . . Fastest Speed 50 | 50 160 160 Average Speed 159 | 153 160 160 Slowest Speed 160 | 160 160 160 Overloaded Moves . | . . . Propulsion Burnouts . | . . . Robots Hopped . | . . . Cave-ins Triggered . | . . . Exploration Rate (%) 43 | 10 97 23 Regions Visited 2 Branch Regions . Pre-discovered Areas . | . . . Known Exits Taken 1 | . 1 . Unknown Exits Taken 1 | 1 . . Scrap Searched . | . . . Spaces Dug . | . . . Terrain Destroyed . | . . . Melee . | . . . Projectile . | . . . AOE . | . . . Terrain Rammed . | . . . Walls Destroyed . | . . . Machines Disabled . | . . . Actions | -11 -10 -9 --------- Run | Scr Mat Mat Total 1597 | 453 823 321 Wait 410 | 367 10 33 Move 1069 | 72 760 237 Hop . | . . . Pick Up 33 | 7 14 12 Fast Attach . | . . . Attach 10 | 6 2 2 Detach . | . . . Swap 7 | . 5 2 Drop 11 | 1 8 2 Fire 57 | . 24 33 Melee . | . . . Ram . | . . . Kick . | . . . Crush . | . . . Escape Stasis . | . . . Rewire . | . . . Trap . | . . . Miscellaneous . | . . . Route ------- -11/Scrapyard -10/Materials (discovered 4 exits: *Mat x3 / *Min) -9/Materials History --------- Turn | Location | Event 31 | -11/Scrapyard | Discovered new exit (range 16) 493 | -11/Scrapyard | Entered Materials 494 | -10/Materials | Build established: Mutant 786 | -10/Materials | Discovered new exit (range 16) 1041 | -10/Materials | Identified exit to Materials 1041 | -10/Materials | Identified exit to Mines 1805 | -10/Materials | Entered another Materials area 1805 | -9/Materials | Evolved 2 slots: Propulsion x2 2314 | -9/Materials | Self-destructed Last Messages --------------- ALERT: Suspicious activity at Terminal M001. Dispatching Investigation squad. Connecting with Terminal... >>Prototypes Downloading prototype IDs... Adv. Beam Cannon Hvy. Ion Engine [Achievement: True Hacker] >>Trojan(Track) Trojan loaded successfully. Testing... Tracking enabled and active. Installed Trojans can be viewed by examining an interactive machine. See effect description details by clicking on the Trojan name. Connecting with Terminal... G-34 Mercenary destroyed. Critical hit (Burn: +37). Ion Engine destroyed. R-06 Scavenger collects Heat Sink. Lgt. Treads destroyed. Map ----- +----------------------------------------------------+ | | | | | | | | | | | ????????????????#############????????????????????? | | ????????????????# """ """ #????????????########? | | ????????????????# """ """ #????????????# !| #? | | ????????????????# """ """ ! #????????????# !| #? | | ????????????????# #????????????# || #? | | ????????????????# ! #????????????# #? | | ????????????????# #????????????# #? | | ????????????????# #????????????# #? | | ????????????????######+################??####+###? | | ????#####+########### + [ #???# #? | | ? """T""" # ##### ! #? | | ? # + % #? | | ? ^ ^ # ##### #? | | ????######^ """!r""" # #???# #? | | ?????????# """%*""" # #???### ###? | | ?????????# """ """ #####+#########?????# #??? | | ?????????+ g g #######??????# #??? | | ?????????# g #??? | | ?????????# g! t #######???######??? | | ?????????# g #?????????# #???? | | ?????????##"Y"##+### @ ########### #???? | | ??????????#"""# ##########% # # #???? | | ???????????#?## | ########## % # # #???? | | ??????????????# # #% # """ # #???? | | ??????????????#" !#[ """ # # """ # #???? | | ??????????????#T # """ # # """ # #???? | | ??????????????#" # """ + + # #???? | | ??????????????# # # # # #???? | | ??????????????##### # # !! # #???? | | ???????????????############# ########### #???? | | ?????????????? % #???? | | ?????????????? %^ #???? | | ?????????????? #???? | | ???????????????############# ###############???? | | ???????????????????????????# # "T" #??????????? | | ???????????????#######?????# %# #??????????? | | ???????????????# ####### !+ #??????????? | | ???????????????# %= # == *#??????????? | | ???????????????# % % #??=/ #??????????? | | ???????????????# #???? #??????????? | | ???????????????# ###+#######??????#??????????? | | ???????????????### ### #?????????????????? | | ?????????????????# #?# #?????????????????? | | ?????????????????# #?# """" #?????????????????? | | ?????????????????# #?# """" #?????????????????? | +----------------------------------------------------+ Best States ------------- Heat Dissipation 50 Energy Generation 10 Energy Capacity 250 Matter Stores 300 Matter Capacity 300 Sight Range 16 Terrain Scan Density 10 Resistance: KI 20 Resistance: TH 20 Resistance: EX 20 Resistance: EM 20 Resistance: I 20 Resistance: S 20 Resistance: P 20 Evasion (%) 40 Recoil Reduction 3 Offensive Hacking 10 Item Schematics ----------------- None Robot Schematics ------------------ None Fabricated ------------ Nothing Alien Tech Used ----------------- None Achievements -------------- True Hacker Challenges ------------ None Game ------ Seed NetworkReactiveMachine Manual? 0 Play Time 00:26:21 Cumulative 6.5 hours Start 2022.07.03 @ 17:09:55 End 2022.07.03 @ 17:36:28 Sessions 1 Manual Loads 0 Difficulty Adventurer Special Mode None Game No. 6 Rogue 0 Adventurer 6 Explorer 0 Win Type - Total 0 Types 0/0/0/0/0/0/0/0/0 Lore% 14 Gallery% 17 Achievement% 13 Wizard Run 0 Options --------- ASCII 0 Keyboard 0 Movement Mouse Keybinds 0 Fullscreen 1 Font 18/TerminusBold Map View 76x50 Tactical HUD 0 Map Filters NONE Filters NONE Steam 1 RUN: 7399dae1-ec32-4925-a34f-13085c97314e